fUSD/lending_fUSD_20260508
["ID","MTS","AMOUNT","RATE_DAILY","PERIOD"]
[421842948,1778207450000,-356.78,0.00011994,2]
[421842949,1778207450000,-356.78,0.00012369,2]
[421842962,1778207450000,-1000.0,0.00012792,2]
[421842968,1778207450000,-166.66,0.0001316,2]
[421842957,1778207450000,-356.78,0.00012744,2]
[421842970,1778207450000,-273.75343643,0.00013259,2]
[421842969,1778207450000,-250.0,0.00013171,2]
[421842990,1778207450000,-152.0,0.00013497,2]
[421842985,1778207450000,-151.0,0.00013497,2]
[421842986,1778207450000,-179.78958851,0.00013497,2]
[421842988,1778207450000,-152.0,0.00013497,2]
[421842984,1778207450000,-151.0,0.00013497,2]
[421842987,1778207450000,-152.0,0.00013497,2]
[421842983,1778207450000,-151.0,0.00013497,2]
[421842981,1778207450000,-1000.0,0.00013496,2]
[421842975,1778207450000,-27.55764357,0.0001331,2]
[421842989,1778207450000,-152.0,0.00013497,2]
[421842977,1778207450000,-150.0,0.0001331,2]
[421842978,1778207450000,-1176.74,0.00013332,2]
[421842973,1778207450000,-6444.33781323,0.00013305,2]
[421842972,1778207450000,-696.37949552,0.00013305,2]
[421842979,1778207450000,-2000.0,0.00013406,2]
[421842971,1778207450000,-23.84656357,0.00013259,2]
[421842982,1778207450000,-200.0,0.00013497,2]
[421842974,1778207450000,-1866.86269125,0.00013305,2]
[421842980,1778207450000,-356.78,0.00013493,2]
[421842976,1778207450000,-140.41235643,0.0001331,2]
[421843019,1778207451000,-500.0,0.00013927,2]
[421843015,1778207451000,-500.0,0.00013927,2]
[421843012,1778207451000,-500.0,0.00013927,2]
[421843017,1778207451000,-500.0,0.00013927,2]
[421843013,1778207451000,-500.0,0.00013927,2]
[421843009,1778207451000,-500.0,0.00013927,2]
[421843020,1778207451000,-500.0,0.00013927,2]
[421843014,1778207451000,-500.0,0.00013927,2]
[421843027,1778207451000,-4164.7728,0.00014016,2]
[421843021,1778207451000,-500.0,0.00013927,2]
[421843022,1778207451000,-524.00754556,0.00013927,2]
[421843025,1778207451000,-12014.61704422,0.0001399,2]
[421843028,1778207451000,-45004.5475,0.00014016,2]
[421843029,1778207451000,-5000.0,0.00014016,2]
[421843024,1778207451000,-166.66,0.00013973,2]
[421843023,1778207451000,-1176.74,0.00013967,2]
[421843026,1778207451000,-420.0,0.00013993,2]
[421843010,1778207451000,-500.0,0.00013927,2]
[421843030,1778207451000,-2500.0,0.00014016,2]
[421843018,1778207451000,-500.0,0.00013927,2]
[421843000,1778207451000,-1000.0,0.000138,5]
[421843016,1778207451000,-500.0,0.00013927,2]
[421842994,1778207451000,-174.61919141,0.00013497,2]
[421842993,1778207451000,-2080.17592889,0.00013497,2]
[421842992,1778207451000,-292.52222216,0.00013497,2]
[421842991,1778207451000,-152.0,0.00013497,2]
[421842995,1778207451000,-300.0,0.000136,4]
[421843007,1778207451000,-1400.0,0.000139,5]
[421842996,1778207451000,-1176.74,0.0001365,2]
[421843004,1778207451000,-166.66,0.00013884,2]
[421843031,1778207451000,-1680.0,0.00014032,2]
[421842999,1778207451000,-700.0,0.000137,5]
[421842998,1778207451000,-200.0,0.00013699,2]
[421843006,1778207451000,-173.94,0.00013895,2]
[421842997,1778207451000,-166.66,0.00013699,2]
[421843001,1778207451000,-166.66,0.00013836,2]
[421843005,1778207451000,-229.0,0.0001389,2]
[421843003,1778207451000,-356.78,0.00013868,2]
[421843008,1778207451000,-4568.2915,0.00013916,2]
[421843011,1778207451000,-500.0,0.00013927,2]
[421843002,1778207451000,-500.0,0.00013836,2]
[421843033,1778207451000,-2157.14243826,0.00014045,2]
[421843057,1778207451000,-500.0,0.00014115,2]
[421843035,1778207451000,-990.25145889,0.00014055,2]
[421843058,1778207451000,-208.5651577,0.00014115,2]
[421843059,1778207451000,-500.0,0.00014115,2]
[421843056,1778207451000,-500.0,0.00014115,2]
[421843062,1778207451000,-666.0,0.00014115,2]
[421843061,1778207451000,-300.0,0.00014115,2]
[421843066,1778207451000,-520.75710577,0.00014116,2]
[421843067,1778207451000,-500.0,0.00014116,2]
[421843063,1778207451000,-300.0,0.00014115,2]
[421843060,1778207451000,-347.00931994,0.00014115,2]
[421843065,1778207451000,-284.83695705,0.00014116,2]
[421843068,1778207451000,-62563.43579216,0.00014116,2]
[421843072,1778207451000,-444.0,0.00014116,2]
[421843071,1778207451000,-643.82857995,0.00014116,2]
[421843074,1778207451000,-26491.54762082,0.00014116,2]
[421843073,1778207451000,-5414.63463573,0.00014116,2]
[421843076,1778207451000,-42392.56587777,0.00014116,2]
[421843075,1778207451000,-380.52932165,0.00014116,2]
[421843034,1778207451000,-273.72093217,0.00014045,2]
[421843069,1778207451000,-348214.76713261,0.00014116,2]
[421843064,1778207451000,-677.26240189,0.00014115,2]
[421843070,1778207451000,-356.44950306,0.00014116,2]
[421843054,1778207451000,-163.94180692,0.00014115,2]
[421843055,1778207451000,-500.0,0.00014115,2]
[421843036,1778207451000,-4893.15702952,0.00014073,2]
[421843037,1778207451000,-1059.85899207,0.00014073,2]
[421843042,1778207451000,-155.598,0.00014115,2]
[421843039,1778207451000,-173.03748202,0.00014084,2]
[421843040,1778207451000,-362.46731247,0.00014106,2]
[421843038,1778207451000,-157.45440269,0.00014073,2]
[421843043,1778207451000,-500.0,0.00014115,2]
[421843032,1778207451000,-200.0,0.00014045,2]
[421843041,1778207451000,-166.66,0.0001411,2]
[421843048,1778207451000,-500.0,0.00014115,2]
[421843052,1778207451000,-500.0,0.00014115,2]
[421843047,1778207451000,-500.0,0.00014115,2]
[421843049,1778207451000,-500.0,0.00014115,2]
[421843044,1778207451000,-295.61642328,0.00014115,2]
[421843046,1778207451000,-500.0,0.00014115,2]
[421843051,1778207451000,-500.0,0.00014115,2]
[421843053,1778207451000,-500.0,0.00014115,2]
[421843045,1778207451000,-500.0,0.00014115,2]
[421843050,1778207451000,-500.0,0.00014115,2]
[421843092,1778207452000,-166.66,0.00014247,2]
[421843088,1778207452000,-471.67170164,0.00014173,2]
[421843091,1778207452000,-356.78,0.00014243,2]
[421843098,1778207452000,-1002.01916522,0.00014443,2]
[421843097,1778207452000,-255.0,0.00014414,2]
[421843110,1778207452000,-882.65363657,0.00014799,2]
[421843104,1778207452000,-2096.219,0.00014687,2]
[421843109,1778207452000,-1088.0953,0.00014799,2]
[421843101,1778207452000,-173.03748203,0.00014604,2]
[421843090,1778207452000,-460.49,0.000142,2]
[421843103,1778207452000,-187.192,0.00014687,2]
[421843099,1778207452000,-150.99,0.00014504,2]
[421843096,1778207452000,-166.66,0.00014384,2]
[421843080,1778207452000,-1215.30318132,0.00014116,2]
[421843093,1778207452000,-1438.0,0.00014284,5]
[421843086,1778207452000,-500.0,0.00014173,2]
[421843087,1778207452000,-500.0,0.00014173,2]
[421843095,1778207452000,-515.93081429,0.00014292,2]
[421843084,1778207452000,-502.21907443,0.00014173,2]
[421843085,1778207452000,-500.30579145,0.00014173,2]
[421843083,1778207452000,-504.57495687,0.00014173,2]
[421843078,1778207452000,-1890.13968419,0.00014116,2]
[421843081,1778207452000,-1980.58075856,0.00014116,2]
[421843082,1778207452000,-2005203.76339546,0.00014116,2]
[421843079,1778207452000,-1643.00418146,0.00014116,2]
[421843077,1778207452000,-1165.45033526,0.00014116,2]
[421843108,1778207452000,-1000.0,0.00014721,2]
[421843094,1778207452000,-1150.0,0.00014284,5]
[421843102,1778207452000,-166.66,0.00014608,2]
[421843089,1778207452000,-500.0,0.00014173,2]
[421843100,1778207452000,-1280.93194391,0.00014593,2]
[421843135,1778207452000,-1024.04884267,0.00014899,2]
[421843132,1778207452000,-3281.42634326,0.00014899,2]
[421843105,1778207452000,-1143.89900532,0.000147,2]
[421843134,1778207452000,-793.09,0.00014899,2]
[421843130,1778207452000,-1838.8604776,0.00014899,2]
[421843129,1778207452000,-24953.39175741,0.00014899,2]
[421843131,1778207452000,-757.31580616,0.00014899,2]
[421843128,1778207452000,-853.9665,0.00014899,2]
[421843127,1778207452000,-1496.59487774,0.00014899,2]
[421843124,1778207452000,-9944.15641951,0.00014899,2]
[421843123,1778207452000,-1400.57371478,0.00014899,2]
[421843126,1778207452000,-3966.05,0.00014899,2]
[421843136,1778207452000,-941.16273279,0.00014899,2]
[421843125,1778207452000,-713.67957342,0.00014899,2]
[421843133,1778207452000,-11363.68049788,0.00014899,2]
[421843121,1778207452000,-31593.47576132,0.00014899,2]
[421843119,1778207452000,-180545.7456125,0.00014899,2]
[421843118,1778207452000,-300.0,0.00014898,2]
[421843117,1778207452000,-362.46731247,0.00014889,2]
[421843115,1778207452000,-2000.0,0.0001485,2]
[421843116,1778207452000,-2000.0,0.0001486,2]
[421843120,1778207452000,-593.2743891,0.00014899,2]
[421843114,1778207452000,-2000.0,0.0001485,2]
[421843112,1778207452000,-314.20121905,0.00014799,2]
[421843111,1778207452000,-190.3273055,0.00014799,2]
[421843113,1778207452000,-41771.24810296,0.0001485,2]
[421843107,1778207452000,-1000.0,0.00014721,2]
[421843106,1778207452000,-1000.0,0.00014721,2]
[421843122,1778207452000,-501.85319912,0.00014115,2]
[421843138,1778207453000,-2252.10110222,0.00014899,2]
[421843139,1778207453000,-6011.23450505,0.00014899,2]
[421843137,1778207453000,-8802.10467162,0.00014899,2]
[421843140,1778207453000,-659.30907396,0.00014899,2]
[421843142,1778207453000,-37844.59325403,0.00014899,2]
[421843141,1778207453000,-10232.89043018,0.00014899,2]
[421843143,1778207557000,155.61,7.026e-05,2]
[421843147,1778207558000,155.61,9.581e-05,2]
[421843146,1778207558000,155.61,8.942e-05,2]
[421843145,1778207558000,155.61,8.303e-05,2]
[421843144,1778207558000,155.61,7.664e-05,2]
[421843150,1778207559000,155.61,0.00011497,2]
[421843149,1778207559000,155.61,0.00010858,2]
[421843148,1778207559000,155.61,0.00010219,2]
[421843156,1778208128000,560.0,0.00030137,120]
[421843157,1778208402000,758.54,6.269e-05,2]
[421843159,1778208402000,758.54,6.929e-05,2]
[421843160,1778208402000,758.54,7.259e-05,2]
[421843162,1778208402000,370.29661755,7.589e-05,2]
[421843161,1778208402000,388.24338245,7.589e-05,2]
[421843163,1778208402000,758.54,7.919e-05,2]
[421843165,1778208402000,486.26109289,8.579e-05,2]
[421843158,1778208402000,758.54,6.599e-05,2]
[421843164,1778208402000,758.54,8.249e-05,2]
[421843168,1778208402000,758.54,9.238e-05,2]
[421843167,1778208402000,758.54,8.908e-05,2]
[421843169,1778208402000,758.54,9.568e-05,2]
[421843170,1778208402000,758.54,9.898e-05,2]
[421843172,1778208402000,758.54,0.00010558,2]
[421843173,1778208402000,758.54,0.00010888,2]
[421843171,1778208402000,758.54,0.00010228,2]
[421843175,1778208402000,758.54,0.00011548,2]
[421843174,1778208402000,758.54,0.00011218,2]
[421843176,1778208402000,758.54,0.00011878,2]
[421843166,1778208402000,272.27890711,8.579e-05,2]
[421843179,1778208461000,229.07,0.0002963,120]
[421843210,1778208632000,-167.97,0.0001271,2]
[421843216,1778208632000,-302.57,0.00012896,2]
[421843213,1778208632000,-155.61,0.00012774,2]
[421843212,1778208632000,-171.22,0.0001276,2]
[421843214,1778208632000,-753.34884773,0.00012796,2]
[421843215,1778208632000,-150.0,0.00012804,2]
[421843211,1778208632000,-264.06,0.00012752,2]
[421843217,1778208632000,-150.0,0.00012925,2]
[421843221,1778208632000,-302.57,0.00013218,2]
[421843219,1778208632000,-581.13,0.00013054,2]
[421843223,1778208632000,-310.97843141,0.00013349,2]
[421843222,1778208632000,-753.34884773,0.00013261,2]
[421843209,1778208632000,-150.0,0.00012684,2]
[421843220,1778208632000,-710.2,0.00013123,2]
[421843225,1778208632000,-250.0,0.00013349,2]
[421843224,1778208632000,-506.88399035,0.00013349,2]
[421843226,1778208632000,-150.0,0.000134,2]
[421843218,1778208632000,-157.0,0.00013045,2]
[421843207,1778208632000,-150.0,0.00012562,2]
[421843203,1778208632000,-17859.86,0.00012451,2]
[421843202,1778208632000,-300.0,0.0001245,2]
[421843228,1778208632000,-155.61,0.00013413,2]
[421843190,1778208632000,-155.61,0.00012135,2]
[421843189,1778208632000,-851.542211,0.00012074,2]
[421843194,1778208632000,-164.2891,0.00012257,2]
[421843191,1778208632000,-339.36699627,0.00012172,2]
[421843192,1778208632000,-150.0,0.000122,2]
[421843193,1778208632000,-758.54,0.00012208,2]
[421843196,1778208632000,-5019.42,0.00012316,2]
[421843195,1778208632000,-200.0,0.0001229,2]
[421843198,1778208632000,-150.0,0.00012441,2]
[421843197,1778208632000,-150.0,0.00012321,2]
[421843199,1778208632000,-300.0,0.0001245,2]
[421843200,1778208632000,-1200.0,0.0001245,2]
[421843201,1778208632000,-300.0,0.0001245,2]
[421843205,1778208632000,-2000.0,0.00012464,2]
[421843206,1778208632000,-758.54,0.00012538,2]
[421843204,1778208632000,-1000.0,0.00012458,2]
[421843208,1778208632000,-150.0,0.00012683,2]
[421843227,1778208632000,-200.0,0.000134,4]
[421843245,1778208632000,-1186.53640161,0.00013736,2]
[421843230,1778208632000,-302.57,0.00013541,2]
[421843256,1778208632000,-2411.939,0.00013826,2]
[421843254,1778208632000,-516.90615778,0.00013826,2]
[421843253,1778208632000,-171.22,0.00013823,2]
[421843255,1778208632000,-509.68714748,0.00013826,2]
[421843258,1778208632000,-249.7434213,0.00013826,2]
[421843260,1778208632000,-500.0,0.00013826,2]
[421843262,1778208632000,-500.0,0.00013826,2]
[421843263,1778208632000,-500.0,0.00013826,2]
[421843259,1778208632000,-500.0,0.00013826,2]
[421843261,1778208632000,-599.3361958,0.00013826,2]
[421843265,1778208632000,-500.0,0.00013826,2]
[421843264,1778208632000,-500.0,0.00013826,2]
[421843270,1778208632000,-500.0,0.00013826,2]
[421843266,1778208632000,-351.76575112,0.00013826,2]
[421843269,1778208632000,-500.0,0.00013826,2]
[421843267,1778208632000,-554.94093598,0.00013826,2]
[421843229,1778208632000,-400.0,0.000135,4]
[421843251,1778208632000,-4983.62327102,0.00013821,2]
[421843252,1778208632000,-953.87309284,0.00013821,2]
[421843257,1778208632000,-153.106,0.00013826,2]
[421843249,1778208632000,-1100.0,0.000138,5]
[421843232,1778208632000,-600.0,0.000136,4]
[421843231,1778208632000,-2080.17592889,0.00013568,2]
[421843248,1778208632000,-953.87309284,0.00013778,2]
[421843236,1778208632000,-200.0,0.00013699,2]
[421843234,1778208632000,-300.0,0.00013661,2]
[421843235,1778208632000,-1680.0,0.00013695,2]
[421843233,1778208632000,-420.0,0.00013661,2]
[421843237,1778208632000,-166.66,0.00013699,2]
[421843240,1778208632000,-894.45,0.00013727,2]
[421843238,1778208632000,-900.0,0.000137,5]
[421843241,1778208632000,-5000.0,0.00013727,2]
[421843242,1778208632000,-4164.7728,0.00013727,2]
[421843243,1778208632000,-2500.0,0.00013727,2]
[421843244,1778208632000,-4983.62327103,0.00013736,2]
[421843268,1778208632000,-349.08931617,0.00013826,2]
[421843246,1778208632000,-953.87309289,0.00013736,2]
[421843247,1778208632000,-4983.62327102,0.00013778,2]
[421843250,1778208632000,-181.23365623,0.00013817,2]
[421843239,1778208632000,-753.34884773,0.00013726,2]
[421843285,1778208633000,-500.0,0.00013826,2]
[421843283,1778208633000,-500.0,0.00013826,2]
[421843281,1778208633000,-500.0,0.00013826,2]
[421843282,1778208633000,-500.0,0.00013826,2]
[421843280,1778208633000,-500.0,0.00013826,2]
[421843279,1778208633000,-500.0,0.00013826,2]
[421843277,1778208633000,-500.0,0.00013826,2]
[421843275,1778208633000,-500.0,0.00013826,2]
[421843276,1778208633000,-500.0,0.00013826,2]
[421843274,1778208633000,-500.0,0.00013826,2]
[421843273,1778208633000,-451.89444145,0.00013826,2]
[421843272,1778208633000,-500.0,0.00013826,2]
[421843271,1778208633000,-500.0,0.00013826,2]
[421843284,1778208633000,-500.0,0.00013826,2]
[421843278,1778208633000,-500.0,0.00013826,2]
[421843287,1778208633000,-500.0,0.00013826,2]
[421843303,1778208633000,-194935.67048907,0.00013827,2]
[421843288,1778208633000,-500.0,0.00013826,2]
[421843301,1778208633000,-382830.496,0.00013827,2]
[421843302,1778208633000,-34067.68741305,0.00013827,2]
[421843300,1778208633000,-249259.1669995,0.00013827,2]
[421843289,1778208633000,-500.0,0.00013826,2]
[421843298,1778208633000,-500.0,0.00013826,2]
[421843297,1778208633000,-500.0,0.00013826,2]
[421843296,1778208633000,-500.0,0.00013826,2]
[421843299,1778208633000,-500.0,0.00013826,2]
[421843293,1778208633000,-500.0,0.00013826,2]
[421843295,1778208633000,-500.0,0.00013826,2]
[421843292,1778208633000,-500.0,0.00013826,2]
[421843290,1778208633000,-500.0,0.00013826,2]
[421843291,1778208633000,-385.3467391,0.00013826,2]
[421843286,1778208633000,-500.0,0.00013826,2]
[421843294,1778208633000,-500.0,0.00013826,2]
[421843324,1778208638000,-1906.31029911,0.00013827,2]
[421843319,1778208638000,-26491.54762082,0.00013827,2]
[421843318,1778208638000,-669.76879346,0.00013827,2]
[421843321,1778208638000,-20205.38941356,0.00013827,2]
[421843320,1778208638000,-380.52932165,0.00013827,2]
[421843322,1778208638000,-736.12857669,0.00013827,2]
[421843323,1778208638000,-668.61257251,0.00013827,2]
[421843332,1778208638000,-4983.62327102,0.00013906,2]
[421843326,1778208638000,-166.66,0.00013836,2]
[421843327,1778208638000,-302.57,0.00013863,2]
[421843329,1778208638000,-953.87309284,0.00013863,2]
[421843328,1778208638000,-4983.62327102,0.00013863,2]
[421843330,1778208638000,-427.26094186,0.000139,2]
[421843331,1778208638000,-200.0,0.000139,5]
[421843325,1778208638000,-587848.69250058,0.00013827,2]
[421843373,1778208639000,-151.0,0.00014218,2]
[421843372,1778208639000,-151.0,0.00014218,2]
[421843371,1778208639000,-151.0,0.00014218,2]
[421843368,1778208639000,-151.0,0.00014218,2]
[421843367,1778208639000,-151.0,0.00014218,2]
[421843366,1778208639000,-311024.9072847,0.00014218,2]
[421843369,1778208639000,-151.0,0.00014218,2]
[421843374,1778208639000,-168.087159,0.00014218,2]
[421843365,1778208639000,-2478.6032449,0.00014218,2]
[421843363,1778208639000,-935009.4494703,0.00014218,2]
[421843370,1778208639000,-587416.1151385,0.00014218,2]
[421843376,1778208639000,-151.0,0.00014218,2]
[421843380,1778208639000,-151.0,0.00014218,2]
[421843377,1778208639000,-151.0,0.00014218,2]
[421843364,1778208639000,-17036.9614117,0.00014218,2]
[421843378,1778208639000,-168.087159,0.00014218,2]
[421843379,1778208639000,-168.087159,0.00014218,2]
[421843382,1778208639000,-168.087159,0.00014218,2]
[421843383,1778208639000,-168.087159,0.00014218,2]
[421843381,1778208639000,-151.0,0.00014218,2]
[421843386,1778208639000,-151.0,0.00014218,2]
[421843384,1778208639000,-151.0,0.00014218,2]
[421843385,1778208639000,-168.087159,0.00014218,2]
[421843387,1778208639000,-168.087159,0.00014218,2]
[421843388,1778208639000,-151.0,0.00014218,2]
[421843389,1778208639000,-151.0,0.00014218,2]
[421843375,1778208639000,-168.087159,0.00014218,2]
[421843362,1778208639000,-2852.3902995,0.00014218,2]
[421843358,1778208639000,-623.36,0.00014179,2]
[421843360,1778208639000,-3079.23968153,0.00014217,2]
[421843391,1778208639000,-500.0,0.00014273,2]
[421843337,1778208639000,-4983.62327102,0.00013991,2]
[421843338,1778208639000,-953.87309284,0.00013991,2]
[421843334,1778208639000,-4983.62327102,0.00013948,2]
[421843336,1778208639000,-166.66,0.00013973,2]
[421843335,1778208639000,-953.87309284,0.00013948,2]
[421843333,1778208639000,-953.87309284,0.00013906,2]
[421843339,1778208639000,-250.0,0.00014,2]
[421843340,1778208639000,-588.4357577,0.00014018,2]
[421843341,1778208639000,-1753.29057707,0.00014018,2]
[421843342,1778208639000,-190.32730549,0.00014018,2]
[421843344,1778208639000,-4983.62327102,0.00014033,2]
[421843343,1778208639000,-2000.0,0.00014022,2]
[421843345,1778208639000,-953.87309284,0.00014033,2]
[421843347,1778208639000,-4983.62327102,0.00014076,2]
[421843346,1778208639000,-155.61,0.00014052,2]
[421843350,1778208639000,-534.37001005,0.00014115,2]
[421843348,1778208639000,-953.87309284,0.00014076,2]
[421843349,1778208639000,-166.66,0.0001411,2]
[421843351,1778208639000,-510.25482162,0.00014116,2]
[421843352,1778208639000,-4983.62327102,0.00014118,2]
[421843354,1778208639000,-2500000.0,0.00014118,2]
[421843353,1778208639000,-953.87309284,0.00014118,2]
[421843355,1778208639000,-2000.0,0.00014118,2]
[421843356,1778208639000,-26744.5644,0.00014118,2]
[421843357,1778208639000,-152.56,0.00014126,2]
[421843359,1778208639000,-302.57,0.00014185,2]
[421843361,1778208639000,-300.0,0.00014217,2]
[421843392,1778208639000,-500.0,0.00014273,2]
[421843439,1778208639000,-498.51,0.00015009,2]
[421843395,1778208639000,-500.0,0.00014273,2]
[421843426,1778208639000,-230.16674427,0.000149,2]
[421843425,1778208639000,-230.16674427,0.000149,2]
[421843427,1778208639000,-297.6,0.00014917,2]
[421843429,1778208639000,-300.0,0.00014998,2]
[421843428,1778208639000,-587.0,0.0001499,2]
[421843430,1778208639000,-300.0,0.00014999,2]
[421843432,1778208639000,-224302.70990984,0.00015,2]
[421843431,1778208639000,-37270.55752817,0.00015,2]
[421843433,1778208639000,-207.77662871,0.00015,2]
[421843435,1778208639000,-786.80639,0.00015,2]
[421843436,1778208639000,-786.80639,0.00015,2]
[421843438,1778208639000,-204.0,0.00015,2]
[421843437,1778208639000,-786.80639,0.00015,2]
[421843451,1778208639000,-1500.0,0.00015368,2]
[421843441,1778208639000,-200.0,0.00015048,2]
[421843446,1778208639000,-200.0,0.00015198,2]
[421843447,1778208639000,-200.0,0.00015198,2]
[421843445,1778208639000,-151.4597492,0.00015068,2]
[421843443,1778208639000,-152.56,0.00015058,2]
[421843440,1778208639000,-310.0,0.00015014,3]
[421843444,1778208639000,-2351.0,0.00015065,2]
[421843442,1778208639000,-200.0,0.00015048,2]
[421843449,1778208639000,-166.66,0.00015332,2]
[421843450,1778208639000,-1500.0,0.00015368,2]
[421843448,1778208639000,-155.0,0.00015209,2]
[421843452,1778208639000,-152.56,0.00015524,2]
[421843390,1778208639000,-166.66,0.00014247,2]
[421843424,1778208639000,-230.16674428,0.000149,2]
[421843422,1778208639000,-1536.0,0.00014899,2]
[421843434,1778208639000,-448.05,0.00015,2]
[421843421,1778208639000,-1536.0,0.00014899,2]
[421843423,1778208639000,-999.33290308,0.00014899,2]
[421843397,1778208639000,-166.66,0.00014384,2]
[421843399,1778208639000,-715.0,0.00014487,5]
[421843398,1778208639000,-223.61,0.00014413,2]
[421843396,1778208639000,-500.0,0.00014273,2]
[421843394,1778208639000,-500.0,0.00014273,2]
[421843401,1778208639000,-255.0,0.00014512,2]
[421843402,1778208639000,-152.56,0.00014592,2]
[421843400,1778208639000,-575.0,0.00014487,5]
[421843404,1778208639000,-168.0,0.00014743,2]
[421843403,1778208639000,-1093.33759803,0.000147,2]
[421843409,1778208639000,-366.06459534,0.00014821,2]
[421843408,1778208639000,-721.84196151,0.00014821,2]
[421843405,1778208639000,-218.86703557,0.00014821,2]
[421843393,1778208639000,-502.49873345,0.00014273,2]
[421843407,1778208639000,-1000.0,0.00014821,2]
[421843406,1778208639000,-1000.0,0.00014821,2]
[421843420,1778208639000,-1536.0,0.00014899,2]
[421843419,1778208639000,-1536.0,0.00014899,2]
[421843418,1778208639000,-1536.0,0.00014899,2]
[421843417,1778208639000,-1536.0,0.00014899,2]
[421843415,1778208639000,-200.0,0.00014899,2]
[421843416,1778208639000,-200.0,0.00014899,2]
[421843413,1778208639000,-171.22,0.00014887,2]
[421843410,1778208639000,-786.80639,0.0001485,2]
[421843411,1778208639000,-786.80639,0.0001485,2]
[421843412,1778208639000,-786.80639,0.0001486,2]
[421843414,1778208639000,-300.0,0.00014899,2]
[421843497,1778208640000,-500.0,0.00016438,2]
[421843496,1778208640000,-500.0,0.00016438,2]
[421843495,1778208640000,-191.77323135,0.00016438,2]
[421843488,1778208640000,-619.81410493,0.00016068,2]
[421843492,1778208640000,-591.75835313,0.00016337,2]
[421843491,1778208640000,-623.60423985,0.00016244,2]
[421843490,1778208640000,-623.60423985,0.0001614,2]
[421843493,1778208640000,-772.60420132,0.00016379,2]
[421843489,1778208640000,-169.916363,0.00016113,2]
[421843487,1778208640000,-619.81410493,0.00016055,2]
[421843499,1778208640000,-500.0,0.00016438,2]
[421843494,1778208640000,-584.3,0.00016438,2]
[421843500,1778208640000,-500.0,0.00016438,2]
[421843509,1778208640000,-500.0,0.00016438,2]
[421843501,1778208640000,-151.0,0.00016438,2]
[421843503,1778208640000,-151.0,0.00016438,2]
[421843504,1778208640000,-151.0,0.00016438,2]
[421843505,1778208640000,-151.0,0.00016438,2]
[421843502,1778208640000,-151.0,0.00016438,2]
[421843506,1778208640000,-151.0,0.00016438,2]
[421843508,1778208640000,-500.0,0.00016438,2]
[421843507,1778208640000,-151.0,0.00016438,2]
[421843510,1778208640000,-500.0,0.00016438,2]
[421843512,1778208640000,-500.43191244,0.00016438,2]
[421843514,1778208640000,-150.44361294,0.00016438,2]
[421843482,1778208640000,-619.81410493,0.00016009,2]
[421843498,1778208640000,-313.80524585,0.00016438,2]
[421843483,1778208640000,-619.81410493,0.00016013,2]
[421843456,1778208640000,-751.94874455,0.00015572,2]
[421843480,1778208640000,-152.56,0.00015991,2]
[421843457,1778208640000,-751.94874455,0.00015576,2]
[421843455,1778208640000,-751.94874455,0.00015569,2]
[421843454,1778208640000,-166.67,0.00015544,2]
[421843453,1778208640000,-155.0,0.00015527,2]
[421843459,1778208640000,-751.94874455,0.0001567,2]
[421843458,1778208640000,-2000.0,0.0001558,2]
[421843461,1778208640000,-166.66,0.00015759,2]
[421843460,1778208640000,-433.0,0.00015718,2]
[421843462,1778208640000,-223.61,0.00015786,2]
[421843463,1778208640000,-619.81410493,0.0001579,2]
[421843464,1778208640000,-181.88,0.00015806,2]